Cogmind - Beta 17 @@@ ROGUE MODE // 2026.08.13 @ 04:01:56 Player: biznut Result: Destroyed by Y-45 Defender with Beam Rifle Performance ------------- Evolutions (2) 1000 Regions Visited (5) 1000 Robots Destroyed (33) 165 Value Destroyed (651) 651 Prototype IDs (1) 20 Alien Tech Used (0) 0 Bonus (0) 0 TOTAL SCORE: 2836 Bonus ------- None Cogmind --------- Core Integrity 0/550 Matter 89/300 Energy 100/100 System Corruption 0% Temperature Cool (58) Movement Core (50) Location -8/Materials Parts ------- > --- POWER (2) -------- (None) > --- PROPULSION (3) --- (None) > --- UTILITY (3) ------ (None) > --- WEAPON (3) ------- (None) > --- INVENTORY (5) ---- Medium Matter Pod (0) Heavy Armor Plating Heavy EM Shotgun Heavy EM Shotgun Peak State ------------ > --- POWER ------------ Deuterium Engine Deuterium Engine > --- PROPULSION ------- Airjet Airjet Airjet > --- UTILITY ---------- Heavy Armor Plating > --- WEAPON ----------- Heavy EM Shotgun Heavy EM Shotgun > --- INVENTORY -------- Airjet Airjet Medium Matter Pod Heavy Armor Plating [Rating: 30] Favorites ----------- Power Improved Ion Engine Engine Improved Ion Engine Propulsion Aluminum Leg Leg Aluminum Leg Wheel Compact Wheel Hover Unit Airjet Utility Large Storage Unit Storage Large Storage Unit Processor Terrain Scan Processor Protection Weapon Shielding Weapon Particle Gun Energy Gun Particle Gun Ballistic Gun Heavy Assault Rifle Launcher Grenade Launcher Special Weapon Mining Laser Build | -11 -10 -10 -9 -9 -8 ------- Run | Yrd Mat Min Mat Min Mat Slots Evolved 4 | . . . 2 . 2 Power 1 | . . . . . 1 Propulsion 1 | . . . 1 . . Utility 1 | . . . 1 . . Weapon 1 | . . . . . 1 Parts Attached 37 | 6 2 1 13 3 12 Power 8 | 1 . 1 1 1 4 Engine 8 | 1 . 1 1 1 4 Core . | . . . . . . Reactor . | . . . . . . Propulsion 11 | 2 . . 4 . 5 Treads . | . . . . . . Leg 4 | 2 . . 2 . . Wheel 2 | . . . 2 . . Hover 5 | . . . . . 5 Flight . | . . . . . . Utility 8 | 1 1 . 4 1 1 Device . | . . . . . . Storage 4 | 1 1 . 2 . . Processor 2 | . . . 1 1 . Hackware . | . . . . . . Protection 2 | . . . 1 . 1 Artifact . | . . . . . . Weapon 10 | 2 1 . 4 1 2 Energy Gun 3 | . . . 1 . 2 Energy Cannon . | . . . . . . Ballistic Gun 3 | 2 . . 1 . . Ballistic Cannon . | . . . . . . Launcher 3 | . 1 . 1 1 . Special Weapon 1 | . . . 1 . . Impact Weapon . | . . . . . . Slashing Weapon . | . . . . . . Piercing Weapon . | . . . . . . Special Melee Weapon . | . . . . . . Unidentified Prototypes 1 | . . . . . 1 Parts Lost 21 | . . . 5 5 11 Power 5 | . . . 1 1 3 Propulsion 8 | . . . 2 1 5 Utility 2 | . . . 1 1 . Weapon 6 | . . . 1 2 3 Highest Loss Streak 7 | . . . 3 3 7 To Critical Strikes . | . . . . . . Average Backups 8 | 2 3 4 9 12 8 Power 2 | . 1 1 3 2 . Propulsion . | 1 2 2 . 2 . Utility 2 | . . . 2 4 6 Weapon 2 | . . 1 2 3 . Tool/Special . | . . . . . . Unused Backups 8 | . . . 1 . 7 Power . | . . . . . . Propulsion . | . . . . . . Utility 8 | . . . 1 . 7 Weapon . | . . . . . . Tool/Special . | . . . . . . Average Slot Usage (%) 89 | . 85 100 92 77 79 Engine 11 | . 14 14 10 6 14 Leg 15 | . 28 28 13 21 6 Wheel 11 | . . . 16 . 12 Storage 18 | . 14 28 21 11 7 Processor 4 | . . . . 16 14 Protection 5 | . . . 8 . . Energy Gun 6 | . . . 9 . 7 Ballistic Gun 9 | . 17 14 8 10 8 Launcher 5 | . 10 14 2 10 4 Peak Build Rating 30 | 6 7 7 13 12 30 Average Rating 11 | 4 5 7 11 10 14 On Entrance 6 | . 6 7 7 11 9 Avg Prop Armor Cover (%) 7 | . . . 7 . 6 Naked Turns 11 | . . . . . 11 Heaviest Build 41 | 13 17 17 40 30 41 Greatest Support 26 | 20 20 20 26 20 26 Greatest Overweight (x) 7 | 1 . . 1 2 7 Average Overweight (x) . | . . . . 1 . Largest Inventory Capacity 15 | 8 8 8 15 15 15 Average Capacity 12 | 6 8 8 13 15 12 Most Carried 14 | 3 4 5 14 14 13 Average Carried 8 | 2 3 4 9 12 9 Final Capacity 15 | 8 8 8 15 15 5 Final Carried 14 | 3 4 5 14 11 5 Class Distribution -------------------- 92% | Mutant 7% | Skirmisher Dominant Class ---------------- Mutant | -10/Materials Mutant | -10/Mines Mutant | -9/Materials Mutant | -9/Mines Skirmisher | -8/Materials Resources | -11 -10 -10 -9 -9 -8 ----------- Run | Yrd Mat Min Mat Min Mat Matter Collected 834 | 206 . 49 283 136 160 Remotely . | . . . . . . Salvage Created 467 | . . 39 332 96 . Parts 45 | . . 7 26 12 . Haulers Intercepted . | . . . . . . Recyclers Shooed 2 | . . . . 2 . Parts Field Recycled . | . . . . . . Retrieved Matter . | . . . . . . Parts Self-Destructed . | . . . . . . Prevented . | . . . . . . Parts Restored . | . . . . . . Kills | -11 -10 -10 -9 -9 -8 ------- Run | Yrd Mat Min Mat Min Mat Combat Hostiles Destroyed 23 | . . 3 14 6 . Guns 12 | . . 2 9 1 . Cannons 1 | . . . 1 . . AOE 10 | . . 1 4 5 . Classes Destroyed 9 | . . 2 6 1 . Worker 3 | . . . 3 . . Builder 3 | . . . 1 2 . Tunneler 1 | . . 1 . . . Operator 1 | . . . 1 . . Watcher 2 | . . . 2 . . Swarmer 12 | . . 3 6 3 . Grunt 9 | . . . 7 2 . Duelist 1 | . . . . 1 . Sentry 1 | . . . 1 . . Best Kill Streak 7 | . . 3 7 3 . Combat Bots Only 4 | . . 3 4 3 . Max Kills in Single Turn 3 | . . 1 3 2 . Gunslinging . | . . . . . . Exploded 2 | . . 1 2 2 . Melee . | . . . . . . Uniques/NPCs Destroyed . | . . . . . . Combat | -11 -10 -10 -9 -9 -8 -------- Run | Yrd Mat Min Mat Min Mat Hostile Shots Fired 263 | . 4 14 93 40 112 Missed 66 | . 2 6 21 13 24 Hits 197 | . 2 8 72 27 88 Melee 13 | . . . . 4 9 Projectile 184 | . 2 8 72 23 79 Critical Strikes 5 | . . . . . 5 Damage Taken 2887 | . 30 60 782 519 1496 Core 864 | . 18 . 166 120 560 Absorbed by Shields . | . . . . . . Redirected to Shielding 46 | . . . 33 13 . Regen/Repaired (Parts) 27 | . . . 27 . . Core Remaining (%) 73 | 100 . 92 . 28 . Volleys Fired 86 | . 1 5 54 11 15 Largest 3 | . 2 2 2 2 3 Hottest 165 | . 50 50 165 53 115 Shots Fired 159 | . 2 9 89 21 38 Gun 121 | . 1 5 71 11 33 Cannon . | . . . . . . Launcher 36 | . 1 4 16 10 5 Special 2 | . . . 2 . . Kinetic 60 | . 1 5 27 11 16 Thermal 57 | . . . 46 . 11 Explosive 36 | . 1 4 16 10 5 Electromagnetic 6 | . . . . . 6 Robot Hit Streak 7 | . . 1 7 2 5 Robot Miss Streak 6 | . . 2 6 2 4 Penetration Max . | . . . . . . Secondary Targets . | . . . . . . Shots Hit Robots 71 | . . 2 46 11 12 Core Hits 56 | . 2 4 32 16 2 Critical Kills . | . . . . . . Critical Parts Destroyed . | . . . . . . Critical Strikes . | . . . . . . Melee Attacks . | . . . . . . Impact . | . . . . . . Slashing . | . . . . . . Piercing . | . . . . . . Sneak Attacks . | . . . . . . Combat Hostiles . | . . . . . . Follow-up Attacks . | . . . . . . Damage Inflicted 2475 | . 40 192 1383 682 178 Guns 857 | . 14 28 607 79 129 Cannons . | . . . . . . Explosions 1554 | . 26 164 723 597 44 Melee . | . . . . . . Ramming 40 | . . . 29 6 5 Kinetic 459 | . 14 28 284 79 54 Thermal 392 | . . . 347 . 45 Explosive 1554 | . 26 164 723 597 44 Electromagnetic 30 | . . . . . 30 Impact . | . . . . . . Slashing . | . . . . . . Piercing . | . . . . . . Highest Corruption . | . . . . . . Average Corruption . | . . . . . . Corruption Purged . | . . . . . . Corruption Blocked . | . . . . . . Overload Shots . | . . . . . . Overflow Damage 41 | . . 3 35 3 . Projectiles . | . . . . . . Explosions 41 | . . 3 35 3 . Melee . | . . . . . . Knockbacks 1 | . . . 1 . . Impact 1 | . . . 1 . . Kinetic . | . . . . . . Secondary . | . . . . . . Self-Inflicted Damage 201 | . . . 53 119 29 Shots 10 | . . . 2 5 3 Rammed 8 | . . . 5 . 3 Targets Rammed 11 | . . . 6 2 3 Kicked 3 | . . . 1 2 . Crushed . | . . . . . . Highest Temperature 290 | . . . 290 . 268 Average Temperature 73 | . . . 67 . 86 Received Heat Transfer 969 | . 15 . 276 138 540 Siege Activations . | . . . . . . Martial Activations . | . . . . . . Shielding Activations . | . . . . . . Robots Disrupted . | . . . . . . Combat Hostiles . | . . . . . . Robots Corrupted . | . . . . . . Combat Hostiles . | . . . . . . Parts Fried . | . . . . . . Impact Corruptions . | . . . . . . Robots Melted . | . . . . . . Combat Hostiles . | . . . . . . Parts Melted 2 | . . . 2 . . Heat Transferred 938 | . . . 827 . 111 Parts Sabotaged . | . . . . . . Parts Stolen . | . . . . . . Parts Stripped . | . . . . . . Power Chain Reactions . | . . . . . . Alert | -11 -10 -10 -9 -9 -8 ------- Run | Yrd Mat Min Mat Min Mat Maximum Alert Level . | . . . . . . Low Security (%) 100 | 100 100 100 100 100 100 Level 1 . | . . . . . . Level 2 . | . . . . . . Level 3 . | . . . . . . Level 4 . | . . . . . . Level 5 . | . . . . . . High Security . | . . . . . . Max Security . | . . . . . . Peak Influence 179 | . 8 76 168 179 65 Initial 55 | . . . 13 55 31 Average 44 | . 1 34 39 136 22 Influence Increases 1016 | . 8 95 530 208 175 Destroy 0b10 Robot/C 460 | . . 60 280 120 . Destroy 0b10 Robot/NC 50 | . . 5 35 10 . Destroy Leader 74 | . . 10 44 20 . Disable Machine 90 | . . . 45 . 45 Destroy Structure 222 | . 8 20 96 58 40 Lose Combat Pursuer 120 | . . . 30 . 90 Influence Decreases 1001 | . 8 60 421 269 243 Entered New Map 163 | . . . 22 89 52 Time Decay 663 | . 8 60 349 130 116 Lost Part 175 | . . . 50 50 75 Squads Dispatched 9 | . . . 2 . 7 Investigation 1 | . . . 1 . . Extermination . | . . . . . . Reinforcement 4 | . . . 1 . 3 Assault 2 | . . . . . 2 Garrison 2 | . . . . . 2 Intercept . | . . . . . . Searches Triggered . | . . . . . . Construction Impeded 1 | . . . 1 . . Haulers Reinforced . | . . . . . . Active Scanning Responses . | . . . . . . Cargo Convoy Interrupts . | . . . . . . Stealth | -11 -10 -10 -9 -9 -8 --------- Run | Yrd Mat Min Mat Min Mat Distress Signals 5 | . . . 2 . 3 Communications Jammed . | . . . . . . Distress Signals . | . . . . . . Times Spotted 58 | . 2 3 26 9 18 Peak Tracking Total 9 | . 2 3 7 3 9 Tactical Retreats 3 | . . . 1 . 2 Traps | -11 -10 -10 -9 -9 -8 ------- Run | Yrd Mat Min Mat Min Mat Traps Triggered . | . . . . . . Indirectly . | . . . . . . Trap Hack Attempts . | . . . . . . Triggered . | . . . . . . Disarmed . | . . . . . . Reprogrammed . | . . . . . . Reused . | . . . . . . Traps Extracted . | . . . . . . Installed . | . . . . . . Triggered . | . . . . . . Machines | -11 -10 -10 -9 -9 -8 ---------- Run | Yrd Mat Min Mat Min Mat Machines Disabled 6 | . . . 3 . 3 Max in Single Turn 1 | . . . 1 . 1 Garrison Access 1 | . . . . . 1 Machines Repaired . | . . . . . . Machines Dismantled . | . . . . . . Machines Sabotaged . | . . . . . . Overloaded Fab Kills . | . . . . . . Hacking | -11 -10 -10 -9 -9 -8 --------- Run | Yrd Mat Min Mat Min Mat Machines Accessed 4 | . . . 4 . . Terminals 2 | . . . 2 . . Fabricators . | . . . . . . Repair Stations 1 | . . . 1 . . Recycling Units . | . . . . . . Scanalyzers 1 | . . . 1 . . Garrison Access . | . . . . . . Total Hacks 14 | . . . 14 . . Successful 10 | . . . 10 . . Failed 3 | . . . 3 . . Catastrophic 1 | . . . 1 . . Database Lockouts 1 | . . . 1 . . Manual . | . . . . . . Terminals 3 | . . . 3 . . Fabricators . | . . . . . . Repair Stations 2 | . . . 2 . . Recycling Units . | . . . . . . Scanalyzers 9 | . . . 9 . . Garrison Access . | . . . . . . Terminal Hacks 1 | . . . 1 . . Dispatch Records 1 | . . . 1 . . Fabricator Hacks . | . . . . . . Repair Station Hacks 2 | . . . 2 . . Scan Component 1 | . . . 1 . . Repair 1 | . . . 1 . . Recycling Unit Hacks . | . . . . . . Scanalyzer 7 | . . . 7 . . Insert Component 2 | . . . 2 . . Analyze 2 | . . . 2 . . Retrieve Study 3 | . . . 3 . . Garrison Access Hacks . | . . . . . . Unauthorized Hacks . | . . . . . . Terminals . | . . . . . . Fabricators . | . . . . . . Repair Stations . | . . . . . . Recycling Units . | . . . . . . Scanalyzers . | . . . . . . Garrison Access . | . . . . . . Data Cores Recovered . | . . . . . . Used . | . . . . . . Hacking Detections 4 | . . . 4 . . Full Trace Events 1 | . . . 1 . . Feedback Events . | . . . . . . Feedback Blocked . | . . . . . . Robot Schematics Acquired . | . . . . . . Robots Built . | . . . . . . Authchips . | . . . . . . Time . | . . . . . . Total Robot Build Rating . | . . . . . . Part Schematics Acquired 2 | . . . 2 . . Parts Built . | . . . . . . Authchips . | . . . . . . Time . | . . . . . . Total Part Build Rating . | . . . . . . Part Studies Acquired 3 | . . . 3 . . Parts Repaired 1 | . . . 1 . . Time 26 | . . . 26 . . Parts Recycled . | . . . . . . Recycled Matter . | . . . . . . Retrieved Matter . | . . . . . . Retrieved Components . | . . . . . . Parts Scanalyzed 2 | . . . 2 . . Part Schematics Acquired 2 | . . . 2 . . Parts Damaged . | . . . . . . Bothacking | -11 -10 -10 -9 -9 -8 ------------ Run | Yrd Mat Min Mat Min Mat Used RIF Installer . | . . . . . . Robots Hacked . | . . . . . . Non-combat . | . . . . . . Combat . | . . . . . . Robot Hacks Applied . | . . . . . . Relay Couplers Released 1 | . . . . . 1 Machine Destruction 1 | . . . . . 1 Fabnet Peak Effective % . | . . . . . . Robots Rewired . | . . . . . . Allies Hacked . | . . . . . . Hacks Repelled . | . . . . . . Allies | -11 -10 -10 -9 -9 -8 -------- Run | Yrd Mat Min Mat Min Mat Total Allies . | . . . . . . Largest Group . | . . . . . . Highest-Rated Group . | . . . . . . Highest-Rated Ally . | . . . . . . Total Orders . | . . . . . . Ally Attacks . | . . . . . . Total Damage . | . . . . . . Kills . | . . . . . . Allies Corrupted . | . . . . . . Allies Melted . | . . . . . . Intel | -11 -10 -10 -9 -9 -8 ------- Run | Yrd Mat Min Mat Min Mat Active Infowar (turns) 384 | . . . . 138 246 Optics 384 | . . . . 138 246 Robot Analysis Total . | . . . . . . Derelict Logs Recovered . | . . . . . . Drone Launches . | . . . . . . Drone Recoveries . | . . . . . . Exploration | -11 -10 -10 -9 -9 -8 ------------- Run | Yrd Mat Min Mat Min Mat Turns Passed 2470 | 55 107 189 1548 260 311 Spaces Moved 1065 | 42 84 144 453 125 217 Core 34 | 10 . . . . 24 Treads . | . . . . . . Legs 517 | 32 84 144 132 125 . Wheels 486 | . . . 321 . 165 Hover 28 | . . . . . 28 Flight . | . . . . . . Fastest Speed 50 | 50 120 120 90 175 50 Average Speed 119 | 104 120 120 114 177 99 Slowest Speed 400 | 120 120 120 190 245 400 Overloaded Moves . | . . . . . . Propulsion Burnouts . | . . . . . . Robots Hopped . | . . . . . . Potential Cave-ins . | . . . . . . Cave-ins Triggered . | . . . . . . Exploration Rate (%) 24 | 4 18 30 29 40 24 Regions Visited 5 Branch Regions 2 Pre-discovered Areas . | . . . . . . Known Exits Taken . | . . . . . . Unknown Exits Taken 5 | 1 1 1 1 1 . Scrap Searched 1 | . . 1 . . . Spaces Dug 1 | . . . 1 . . Terrain Destroyed 258 | . 8 27 114 70 39 Melee . | . . . . . . Projectile 1 | . . . 1 . . AOE 257 | . 8 27 113 70 39 Terrain Rammed . | . . . . . . Walls Destroyed . | . . . . . . Machines Disabled . | . . . . . . Actions | -11 -10 -10 -9 -9 -8 --------- Run | Yrd Mat Min Mat Min Mat Total 2089 | 50 87 150 1386 140 276 Wait 845 | . . . 831 . 14 Move 1060 | 41 83 143 452 124 217 Hop . | . . . . . . Pick Up 27 | 3 . 1 16 . 7 Fast Attach 21 | 6 2 . 6 . 7 Attach 17 | . . . 5 3 9 Detach 7 | . 1 . 4 . 2 Swap 8 | . . 1 6 . 1 Drop 7 | . . . 6 . 1 Fire 86 | . 1 5 54 11 15 Melee . | . . . . . . Ram 8 | . . . 5 . 3 Kick 3 | . . . 1 2 . Crush . | . . . . . . Escape Stasis . | . . . . . . Rewire . | . . . . . . Trap . | . . . . . . Miscellaneous . | . . . . . . Route ------- -11/Scrapyard -10/Materials -10/Mines -9/Materials -9/Mines -8/Materials (discovered 1 exit: [*Sto]) History --------- Turn | Location | Event 14 | -11/Scrapyard | Discovered new exit (range 15) 56 | -11/Scrapyard | Entered Materials 155 | -10/Materials | Discovered new exit (range 5) 163 | -10/Materials | Entered Mines 303 | -10/Mines | Discovered new exit (range 13) 314 | -10/Mines | Build established: Mutant 349 | -10/Mines | Assembled infested the area 352 | -10/Mines | Entered Materials 352 | -9/Materials | Evolved 2 slots: Propulsion x1, Utility x1 418 | -9/Materials | Repaired Grenade Launcher 1806 | -9/Materials | Lost 3 parts (1p1n1u) 1820 | -9/Materials | Central database locked down 1882 | -9/Materials | Discovered new exit (range 7) 1900 | -9/Materials | Entered Mines 1914 | -9/Mines | Core integrity fell below 50% 1954 | -9/Mines | Lost 3 parts (1p1u1w) 2134 | -9/Mines | Discovered new exit (range 6) 2160 | -9/Mines | Entered Materials 2160 | -8/Materials | Evolved 2 slots: Power x1, Weapon x1 2308 | -8/Materials | Garrison activated, responded to threat 2406 | -8/Materials | Core integrity fell below 50% 2406 | -8/Materials | Released all parts (4) 2431 | -8/Materials | Lost 7 parts (2p2n3w) 2462 | -8/Materials | Core integrity fell below 20% 2467 | -8/Materials | Discovered new exit (range 10) 2468 | -8/Materials | Released all parts (2) 2471 | -8/Materials | Destroyed by Y-45 Defender with Beam Rifle Last Messages --------------- 02446_ Critical hit (Burn: +37). 02447_ Slug penetrates Wall. 02450_ Airjet severed. 02453_ Airjet destroyed. 02456_ Dropped Hvy. Armor Plating. 02457_ Slammed into G-47 Trooper. 02459_ Penetrated by Slug. 02460_ Slammed into H-55 Commando. 02460_ Airjet broken. 02460_ Destabilizing: Short circuit. 02462_ Slammed into H-55 Commando. 02462_ Deuterium Engine destroyed. 02463_ K-01 Serf collects debris. 02465_ Penetrated by Slug. 02465_ Broken Airjet destroyed. 02467_ K-01 Serf collects debris. 02467_ EXIT=FOUND 02468_ Slug penetrates Wall. 02468_ Released Deuterium Engine. 02468_ Released Airjet. Map ----- +----------------------------------------------------+ | ?????????????????????????????????????????????????? | | ?????????????????????????????????????????????????? | | ?????????????????????????????????????????????????? | | ?????????????????????????????????????????????????? | | ?????????????????????????????????????????????????? | | ?????????????????????????????????????????????????? | | ?????????????????????????????????????????????????? | | ?????????????????????????????????????????????????? | | ??????????????????????????#########??????????????? | | ??????????????????????????? ########???????? | | ???????????????????????????? #[ ! #???????? | | ????????????????????????????? # #???????? | | ??????????????????????????????# # #???????? | | ????????????????????########### # = #???????? | | ????????????????????# [ | # # #???????? | | ????????????????????# "" ! # + #???????? | | ????????????????????# "" *= # ######+######### | | ????????????????????# "T * / #????# ## | | ????????????????????# "" *** # #????# ## | | ????????????????????# "" # #????# ## """"" | | ??????????????????#?# # ###### ## """"" | | ??????????????????# ########### + """"" | | ??????????????????# ####### # | | ??????????????????# * a # | | ??????????????????# Y = ##### # | | ??????????????????# @ #???# #####+## | | ??????????????????# ###########???# | | ??????????????????## ????????????????# [ | | ???????????????????#??????????????????# ]! ! | | ??????????????????????????????????????# !! ! | | ??????????????????????????????????????# !! | | ??????????????????????????????????????# | | ??????????????????????????????????????# | | ??????????????????????????????????????# """ | | ??????????????????????????????????????# """ | | ??????????????????????????????????????# """ | | ??????????????????????????????????????# | | ???????????????????????????????????????? * | | ????????????????????????????????????????# ###### | | ????????????????????????????????????????# #?###? | | ????????????????????????????????????????# ### ## | | ????????????????????????????????????????# # | | ????????????????????????????????????????# " | | ????????????????????????????????????????# "" | | ????????????????????????????????????????# " | | ????????????????????????????????????????# # | | ????????????????????????????????????????# | | ????????????????????????????????????????# | | ????????????????????????????????????????# | | ????????????????????????????????????????# | +----------------------------------------------------+ Best States ------------- Heat Dissipation 31 Energy Generation 23 Energy Capacity 450 Matter Stores 246 Matter Capacity 400 Sight Range 18 Terrain Scan Density 85 Armor Coverage 600 Weapon Shielding 33 Evasion (%) 55 Item Schematics ----------------- Particle Gun | -9/Materials | Scanalyzed Aluminum Leg | -9/Materials | Scanalyzed Robot Schematics ------------------ None Fabricated ------------ Nothing Repaired ---------- Grenade Launcher | 55% | -9/Materials Studied --------- Aluminum Leg | -9/Materials | Hacked Lgt. Ion Engine | -9/Materials | Hacked Grenade Launcher | -9/Materials | Hacked Alien Tech Used ----------------- None Achievements -------------- Spot Them First Challenges ------------ None Game ------ Seed ImpactCoilNeutralizer Manual? 0 Play Time 00:31:11 Cumulative 20.0 hours Start 2026.08.13 @ 03:32:34 End 2026.08.13 @ 04:01:56 Sessions 1 Manual Loads 0 Difficulty Rogue Special Mode None Game No. 26 Rogue 26 Adventurer 0 Explorer 0 Win Type - Total 0 Types 0/0/0/0/0/0/0/0/0/0 Lore% 11 Gallery% 14 Achievement% 11 Wizard Run 0 Options --------- Layout 1 ASCII 0 Keyboard 1 Movement Numpad Keybinds 1 Fullscreen 2 Font 32/SmallcapsGlow Map View 25x20 Zoom Use 60% Tactical HUD 1 Map Filters NONE Filters NONE Steam 1 RUN: 0af3e737-05fe-4aca-9b90-1c0626623067